bitfinex/quotes_BTCUSD_20241111
["timestamp","ask_amount","ask_price","bid_price","bid_amount"]
[1731362520804,0.06139464,87970.0,87967.0,0.0471516]
[1731362521048,0.05079713,87970.0,87967.0,0.0471516]
[1731362521263,0.03386473,87969.0,87967.0,0.0471516]
[1731362521437,0.11922305,87968.0,87967.0,0.0471516]
[1731362521653,0.11922305,87968.0,87962.0,0.00025744]
[1731362521654,0.01,87963.0,87962.0,0.00025744]
[1731362521916,0.52433126,87963.0,87962.0,0.00025744]
[1731362522129,0.5926167,87963.0,87962.0,0.00025744]
[1731362522500,0.6425167,87963.0,87962.0,0.00025744]
[1731362522716,0.6425167,87963.0,87952.0,0.17070187]
[1731362522717,0.0915,87953.0,87952.0,0.17070187]
[1731362522910,0.005,87948.0,87934.0,0.17070187]
[1731362523170,0.012,87935.0,87934.0,0.17070187]
[1731362523401,0.54153698,87935.0,87934.0,0.17070187]
[1731362523616,0.64471961,87935.0,87934.0,0.17070187]
[1731362523837,0.01,87931.0,87930.0,0.04522079]
[1731362524075,0.21253227,87931.0,87930.0,0.04522079]
[1731362524281,0.21253227,87931.0,87921.0,0.17578016]
[1731362524282,0.005,87925.0,87921.0,0.17578016]
[1731362524451,0.31700639,87924.0,87921.0,0.00507829]
[1731362524688,0.31439541,87924.0,87923.0,0.04788435]
[1731362525039,0.34239541,87924.0,87923.0,0.0016266]
[1731362525226,0.37624015,87924.0,87923.0,0.0016266]
[1731362525671,0.34239541,87924.0,87923.0,0.0016266]
[1731362526292,0.34239541,87924.0,87887.0,0.17070187]
[1731362526293,0.005,87909.0,87887.0,0.17070187]
[1731362526498,0.15183403,87909.0,87887.0,0.17070187]
[1731362526747,0.28103403,87909.0,87887.0,0.17070187]
[1731362527157,0.28103403,87909.0,87903.0,0.04690758]
[1731362527733,0.01,87892.0,87887.0,0.17070187]
[1731362527962,0.31439541,87892.0,87887.0,0.17070187]
[1731362528378,0.005,87896.0,87891.0,0.04880274]
[1731362528581,0.005,87893.0,87891.0,0.0017062]
[1731362529276,0.005,87896.0,87891.0,0.0017062]
[1731362529604,0.00261098,87900.0,87891.0,0.0017062]
[1731362529605,0.00261098,87895.0,87891.0,0.0017062]
[1731362529773,0.005,87901.0,87891.0,0.0017062]
[1731362529969,0.005,87907.0,87891.0,0.0017062]
[1731362530194,0.005,87906.0,87891.0,0.0017062]
[1731362530339,0.00761098,87906.0,87891.0,0.0017062]
[1731362530733,0.00261098,87906.0,87893.0,0.1]
[1731362530981,0.005,87906.0,87894.0,0.03198871]
[1731362531415,0.20443365,87936.0,87893.0,0.1]
[1731362531416,0.085,87920.0,87902.0,0.17070187]
[1731362531593,0.17070187,87913.0,87893.0,0.1]
[1731362531798,0.00261098,87912.0,87893.0,0.1]
[1731362531971,0.00261098,87918.0,87903.0,0.1]
[1731362532182,0.00261098,87919.0,87903.0,0.12707019]
[1731362532392,0.00261098,87919.0,87903.0,0.1]
[1731362532393,0.17070187,87905.0,87903.0,0.1]
[1731362532567,0.005,87897.0,87891.0,0.0017062]
[1731362532786,0.19517236,87893.0,87892.0,0.17070187]
[1731362533036,0.0831,87915.0,87892.0,0.17070187]
[1731362533231,0.17070187,87915.0,87893.0,0.13237905]
[1731362533630,0.19517236,87904.0,87894.0,0.0017048]
[1731362533838,0.00261098,87903.0,87895.0,0.17070187]
[1731362534057,0.01,87913.0,87894.0,0.0017048]
[1731362534058,0.00261098,87912.0,87894.0,0.0017048]
[1731362534349,0.11422305,87911.0,87894.0,0.0017048]
[1731362534549,0.005,87913.0,87897.0,0.1]
[1731362534794,0.19517236,87917.0,87899.0,0.17070187]
[1731362534997,0.005,87918.0,87900.0,0.10227506]
[1731362535447,0.005,87918.0,87900.0,0.12320304]
[1731362535655,0.005,87920.0,87900.0,0.12320304]
[1731362535855,0.11683403,87919.0,87900.0,0.12320304]
[1731362536022,0.00261098,87919.0,87909.0,0.1]
[1731362536222,0.005,87926.0,87909.0,0.1]
[1731362536223,0.17070187,87926.0,87909.0,0.1]
[1731362536417,0.27827236,87942.0,87901.0,0.05323008]
[1731362536418,0.005,87932.0,87911.0,0.1]
[1731362536621,0.17070187,87924.0,87911.0,0.1]
[1731362536774,0.00261098,87931.0,87911.0,0.1]
[1731362536977,0.00261098,87931.0,87911.0,0.11831]
[1731362537394,0.00261098,87931.0,87913.0,0.1]
[1731362537553,0.005,87932.0,87921.0,0.17070187]
[1731362537759,0.005,87944.0,87922.0,0.10227449]
[1731362538025,0.17070187,87937.0,87922.0,0.1]
[1731362538295,0.00261098,87943.0,87924.0,0.1]
[1731362538541,0.11683403,87943.0,87924.0,0.1]
[1731362538780,0.0481,87950.0,87924.0,0.1]
[1731362538781,0.0881,87955.0,87932.0,0.17070187]
[1731362539004,0.00261098,87964.0,87934.0,0.0831]
[1731362539202,0.17070187,87954.0,87935.0,0.21422305]
[1731362540080,0.00261098,87964.0,87935.0,0.21422305]
[1731362540081,0.00261098,87964.0,87937.0,0.1]
[1731362541538,0.00261098,87964.0,87938.0,0.01800148]
[1731362541747,0.00261098,87964.0,87937.0,0.1]
[1731362541748,0.19679896,87949.0,87934.0,0.04709711]
[1731362541959,0.00261098,87948.0,87935.0,0.17070187]
[1731362542173,0.005,87947.0,87923.0,0.17070187]
[1731362542404,0.00261098,87946.0,87933.0,0.17070187]
[1731362542619,0.005,87947.0,87933.0,0.17070187]
[1731362542832,0.00261098,87946.0,87924.0,0.00227429]
[1731362543048,0.0016266,87949.0,87933.0,0.17070187]
[1731362543262,0.0016266,87949.0,87934.0,0.01800148]
[1731362543480,0.0016266,87949.0,87943.0,0.1]
[1731362543735,0.17070187,87964.0,87945.0,0.1]
[1731362543943,0.17070187,87964.0,87946.0,0.02027517]
[1731362544159,0.0016266,87967.0,87947.0,0.15474306]
[1731362544389,0.0016266,87967.0,87948.0,0.19148994]
[1731362544596,0.17070187,87965.0,87950.0,0.1]
[1731362544809,0.0016266,87967.0,87950.0,0.1]
[1731362545016,0.00423758,87967.0,87954.0,0.1]
[1731362545234,0.0016266,87967.0,87954.0,0.24534524]
[1731362545448,0.0016266,87967.0,87954.0,0.13112219]
[1731362545676,0.0016266,87967.0,87947.0,0.04591534]
[1731362545677,0.19517236,87955.0,87947.0,0.04591534]
[1731362545882,0.005,87956.0,87954.0,0.17070187]
[1731362546089,0.005,87956.0,87937.0,0.17070187]
[1731362546295,0.005,87956.0,87946.0,0.17070187]
[1731362546514,0.0464,87959.0,87946.0,0.01707019]
[1731362546738,0.0464,87959.0,87937.0,0.17070187]
[1731362546940,0.005,87961.0,87938.0,0.1]
[1731362547848,0.11683403,87960.0,87938.0,0.1]
[1731362548248,0.11683403,87960.0,87938.0,0.09996]
[1731362548743,0.00261098,87960.0,87946.0,0.17070187]
[1731362548961,0.005,87970.0,87947.0,0.01707019]
[1731362548962,0.005,87961.0,87947.0,0.01707019]
[1731362549187,0.00261098,87960.0,87938.0,0.09996]
[1731362549512,0.11422305,87959.0,87938.0,0.09996]
[1731362549862,0.0016266,87967.0,87948.0,0.17070187]
[1731362550156,0.17070187,87963.0,87949.0,0.00899842]
[1731362550380,0.0016266,87967.0,87953.0,0.1]
[1731362550585,0.0016266,87967.0,87955.0,0.1]
[1731362550798,0.0016266,87967.0,87957.0,0.1]
[1731362550956,0.0016266,87967.0,87957.0,0.21422305]
[1731362552430,0.0016266,87967.0,87949.0,0.00858984]
[1731362552639,0.0016266,87967.0,87956.0,0.1]
[1731362552970,0.0016266,87967.0,87950.0,0.13561917]
[1731362553190,0.38679541,87966.0,87949.0,0.04549941]
[1731362553395,0.38679541,87966.0,87946.0,0.17070187]
[1731362553396,0.005,87964.0,87946.0,0.17070187]
[1731362553573,0.005,87960.0,87947.0,0.17070187]
[1731362553774,0.11683403,87959.0,87947.0,0.17070187]
[1731362554154,0.15677467,87959.0,87947.0,0.17070187]
[1731362554367,0.15677467,87959.0,87937.0,0.21595248]
[1731362554586,0.19517236,87957.0,87937.0,0.21595248]
[1731362554791,0.12183403,87956.0,87937.0,0.21595248]
[1731362554974,0.005,87953.0,87937.0,0.04525061]
[1731362555107,0.19517236,87948.0,87938.0,0.17070187]
[1731362555318,0.11683403,87947.0,87938.0,0.17070187]
[1731362556011,0.11683403,87947.0,87921.0,0.17070187]
[1731362556155,0.11683403,87947.0,87936.0,0.17070187]
[1731362556476,0.11683403,87947.0,87921.0,0.21593924]
[1731362556477,0.005,87935.0,87921.0,0.21593924]
[1731362556814,0.0794,87937.0,87921.0,0.21593924]
[1731362556815,0.002,87925.0,87921.0,0.21593924]
[1731362557016,0.00261098,87924.0,87921.0,0.21593924]
[1731362557188,0.00261098,87924.0,87921.0,0.04523737]
[1731362557363,0.002,87922.0,87921.0,0.04523737]
[1731362557577,0.002,87922.0,87900.0,0.001706]
[1731362557743,0.005,87916.0,87912.0,0.04620947]
[1731362557954,0.005,87908.0,87900.0,0.001706]
[1731362558170,0.005,87909.0,87900.0,0.001706]
[1731362558574,0.007,87909.0,87900.0,0.001706]
[1731362558776,0.0824,87907.0,87906.0,0.0475965]
[1731362558978,0.19662305,87907.0,87906.0,0.0016266]
[1731362559611,0.26456369,87907.0,87906.0,0.0016266]
[1731362559828,0.26717467,87907.0,87906.0,0.0016266]
[1731362560290,0.26917467,87907.0,87906.0,0.0016266]
[1731362560494,0.22723403,87907.0,87906.0,0.0016266]
[1731362560849,0.19662305,87907.0,87906.0,0.0016266]
[1731362561050,0.005,87911.0,87906.0,0.0016266]
[1731362561249,0.00261098,87910.0,87906.0,0.0016266]
[1731362561627,0.005,87909.0,87906.0,0.0016266]
[1731362562258,0.005,87907.0,87906.0,0.0016266]
[1731362562455,0.14922305,87907.0,87906.0,0.0016266]
[1731362562653,0.18438775,87907.0,87906.0,0.0016266]
[1731362563193,0.00261098,87910.0,87906.0,0.0016266]
[1731362563478,0.00261098,87919.0,87906.0,0.00546702]
[1731362563689,0.17070187,87927.0,87906.0,0.00546702]
[1731362563927,0.11683403,87926.0,87906.0,0.0016266]
[1731362564136,0.12183403,87926.0,87907.0,0.17070187]
[1731362564286,0.11683403,87926.0,87908.0,0.1]
[1731362565069,0.11683403,87926.0,87908.0,0.095]
[1731362565272,0.11683403,87926.0,87909.0,0.02673285]
[1731362565776,0.005,87919.0,87906.0,0.0016266]
[1731362565989,0.11683403,87918.0,87909.0,0.17070187]
[1731362566338,0.03520286,87917.0,87909.0,0.17070187]
[1731362566537,0.005,87923.0,87909.0,0.17070187]
[1731362566941,0.11683403,87922.0,87909.0,0.17070187]
[1731362567265,0.11683403,87922.0,87910.0,0.1]
[1731362567873,0.11683403,87922.0,87910.0,0.12723285]
[1731362568074,0.11683403,87922.0,87906.0,0.0016266]
[1731362568296,0.11683403,87922.0,87910.0,0.1]
[1731362568721,0.11683403,87922.0,87911.0,0.17070187]
[1731362568986,0.11683403,87922.0,87912.0,0.1]
[1731362569933,0.005,87918.0,87906.0,0.0016266]
[1731362570137,0.11683403,87917.0,87910.0,0.1]
[1731362570363,0.11683403,87917.0,87906.0,0.0016266]
[1731362571469,0.11683403,87917.0,87908.0,0.001706]
[1731362571651,0.005,87915.0,87908.0,0.001706]
[1731362571862,0.11683403,87914.0,87908.0,0.001706]
[1731362572057,0.11683403,87914.0,87911.0,0.1]
[1731362572252,0.11683403,87914.0,87908.0,0.001706]
[1731362572253,0.002,87909.0,87908.0,0.001706]
[1731362572463,0.00461098,87909.0,87908.0,0.001706]
[1731362572701,0.15619467,87909.0,87908.0,0.001706]
[1731362573121,0.15419467,87909.0,87908.0,0.001706]
[1731362573326,0.24729467,87909.0,87908.0,0.001706]
[1731362573491,0.27029467,87909.0,87908.0,0.001706]
[1731362573704,0.035,87907.0,87906.0,0.0016266]
[1731362573912,0.34700639,87907.0,87906.0,0.0016266]
[1731362574081,0.34439541,87907.0,87906.0,0.0016266]
[1731362574294,0.34239541,87907.0,87906.0,0.0016266]
[1731362574476,0.005,87895.0,87888.0,0.1016266]
[1731362574867,0.11922305,87895.0,87888.0,0.1016266]
[1731362575085,0.12183403,87895.0,87888.0,0.1016266]
[1731362576501,0.12183403,87895.0,87894.0,0.04730769]
[1731362576712,0.12183403,87895.0,87894.0,0.0017048]
[1731362577748,0.15423467,87895.0,87894.0,0.0017048]
[1731362578558,0.15623467,87895.0,87894.0,0.00217779]
[1731362578848,0.15423467,87895.0,87894.0,0.00217779]
[1731362580024,0.12183403,87895.0,87894.0,0.00217779]
[1731362580510,0.12383403,87895.0,87894.0,0.00217779]
[1731362580928,0.14683403,87895.0,87894.0,0.00217779]
[1731362581116,0.19673403,87895.0,87894.0,0.00217779]
[1731362581323,0.19473403,87895.0,87894.0,0.00217779]
[1731362581475,0.17173403,87895.0,87894.0,0.00217779]
[1731362582081,0.20912467,87895.0,87894.0,0.00217779]
[1731362582483,0.16673403,87895.0,87894.0,0.00217779]
[1731362585537,0.20206229,87895.0,87894.0,0.00217779]
[1731362589152,0.15216229,87895.0,87894.0,0.00217779]
[1731362591241,0.15716229,87895.0,87894.0,0.00217779]
[1731362591461,0.15916229,87895.0,87894.0,0.00217779]
[1731362591686,0.18216229,87895.0,87894.0,0.00217779]
[1731362592549,0.18016229,87895.0,87894.0,0.00217779]
[1731362592750,0.17516229,87895.0,87894.0,0.00217779]
[1731362593274,0.01060687,87904.0,87894.0,0.00217779]
[1731362593275,0.00261098,87903.0,87894.0,0.00217779]
[1731362593447,0.03368988,87920.0,87894.0,0.02019615]
[1731362593620,0.17070187,87922.0,87894.0,0.02019615]
[1731362593621,0.04854419,87919.0,87896.0,0.1]
[1731362593824,0.03532884,87918.0,87903.0,0.1]
[1731362594031,0.000853,87926.0,87905.0,0.0758]
[1731362594243,0.17070187,87914.0,87906.0,0.00844183]
[1731362594462,0.11422305,87913.0,87907.0,0.00844183]
[1731362594800,0.000853,87926.0,87907.0,0.00844183]
[1731362594801,0.005,87924.0,87908.0,0.00844183]
[1731362595009,0.005,87911.0,87908.0,0.00891482]
[1731362595212,0.005,87909.0,87908.0,0.00047299]
[1731362595431,0.15654123,87909.0,87908.0,0.00047299]
[1731362595640,0.15654123,87909.0,87888.0,0.0016266]
[1731362595641,0.005,87900.0,87899.0,0.1]
[1731362595842,0.005,87906.0,87899.0,0.1]
[1731362596078,0.02561098,87905.0,87894.0,0.04816522]
[1731362596296,0.02561098,87905.0,87894.0,0.0017048]
[1731362596501,0.03061098,87905.0,87894.0,0.0017048]
[1731362596721,0.03385938,87901.0,87896.0,0.17070187]
[1731362596903,0.03385938,87899.0,87896.0,0.17070187]
[1731362597044,0.11683403,87898.0,87894.0,0.0017048]
[1731362597496,0.11683403,87898.0,87894.0,0.04688362]
[1731362598363,0.028,87897.0,87894.0,0.04688362]
[1731362598559,0.05685938,87895.0,87894.0,0.04688362]
[1731362598769,0.13722305,87895.0,87894.0,0.04688362]
[1731362598989,0.50501162,87895.0,87894.0,0.04688362]
[1731362599141,0.50501162,87895.0,87894.0,0.0017048]
[1731362599347,0.56393525,87895.0,87894.0,0.0017048]
[1731362599575,0.64513525,87895.0,87894.0,0.0017048]
[1731362599727,0.6557443,87895.0,87894.0,0.0017048]
[1731362601033,0.59682067,87895.0,87894.0,0.00148666]
[1731362601383,0.59682067,87895.0,87888.0,0.0016266]
[1731362601384,0.012,87889.0,87888.0,0.0016266]
[1731362601627,0.15183403,87889.0,87888.0,0.0016266]
[1731362601835,0.31240533,87889.0,87888.0,0.0016266]
[1731362602168,0.3204034,87889.0,87888.0,0.0016266]
[1731362602378,0.39026159,87889.0,87888.0,0.0016266]
[1731362602809,0.39026159,87889.0,87879.0,0.17240527]
[1731362602810,0.035,87880.0,87879.0,0.0017034]
[1731362603028,0.51244867,87880.0,87879.0,0.0017034]
[1731362603211,0.56352067,87880.0,87879.0,0.0017034]
[1731362603441,0.035,87872.0,87871.0,0.0016266]
[1731362603621,0.57271772,87872.0,87871.0,0.17232847]
[1731362603856,0.50491853,87872.0,87871.0,0.0016266]
[1731362604272,0.58766802,87872.0,87871.0,0.0016266]
[1731362604510,0.012,87865.0,87852.0,0.17070187]
[1731362604718,0.035,87855.0,87852.0,0.17070187]
[1731362604909,0.18456334,87855.0,87852.0,0.17070187]
[1731362605111,0.31231224,87855.0,87852.0,0.17070187]
[1731362605348,0.007,87851.0,87846.0,0.0017034]
[1731362605543,0.18717432,87851.0,87846.0,0.0017034]
[1731362605744,0.3799254,87851.0,87846.0,0.0017034]
[1731362606021,0.0266123,87837.0,87834.0,0.1]
[1731362606224,0.14083535,87837.0,87834.0,0.1]
[1731362607012,0.14083535,87837.0,87829.0,0.0017026]
[1731362607231,0.14344633,87837.0,87836.0,0.04916311]
[1731362607435,0.36050823,87837.0,87836.0,0.0033304]
[1731362607586,0.0336123,87830.0,87829.0,0.0017026]
[1731362607792,0.15044633,87830.0,87829.0,0.0017026]
[1731362607947,0.18569685,87830.0,87829.0,0.0017026]
[1731362608407,0.23842949,87830.0,87829.0,0.0017026]
[1731362608621,0.20317897,87830.0,87829.0,0.0017026]
[1731362609602,0.15044633,87830.0,87829.0,0.0017026]
[1731362612517,0.15044633,87830.0,87800.0,0.0019962]
[1731362612518,0.30512957,87822.0,87816.0,0.27070187]
[1731362612891,0.41935262,87822.0,87817.0,0.17070187]
[1731362613118,0.46635262,87822.0,87817.0,0.17070187]
[1731362613318,0.0336123,87813.0,87800.0,0.0019962]
[1731362613447,0.14783535,87813.0,87800.0,0.0019962]
[1731362613649,0.15044633,87813.0,87800.0,0.0019962]
[1731362614277,0.15044633,87813.0,87800.0,0.04744425]
[1731362614678,0.15044633,87813.0,87807.0,0.1]
[1731362615316,0.14583535,87813.0,87807.0,0.1]
[1731362615517,0.14844633,87813.0,87807.0,0.1]
[1731362615674,0.15044633,87813.0,87807.0,0.1]
[1731362616469,0.14844633,87813.0,87807.0,0.1]
[1731362616690,0.11683403,87813.0,87812.0,0.06656357]
[1731362616948,0.11422305,87813.0,87812.0,0.04890229]
[1731362618015,0.00261098,87821.0,87812.0,0.04890229]
[1731362618246,0.11422305,87820.0,87812.0,0.04890229]
[1731362618451,0.00261098,87819.0,87812.0,0.04890229]
[1731362618682,0.11683403,87819.0,87812.0,0.04890229]
[1731362618975,0.12851743,87819.0,87812.0,0.04890229]
[1731362619184,0.11683403,87819.0,87812.0,0.04890229]
[1731362619401,0.11422305,87818.0,87812.0,0.04890229]
[1731362619604,0.023,87813.0,87812.0,0.04890229]
[1731362619808,0.13983403,87813.0,87812.0,0.04890229]
[1731362620014,0.14544633,87813.0,87812.0,0.04890229]
[1731362620215,0.14344633,87813.0,87812.0,0.04890229]
[1731362620424,0.17801269,87813.0,87812.0,0.04890229]
[1731362620843,0.17801269,87813.0,87812.0,0.001705]
[1731362620844,0.14844633,87813.0,87812.0,0.001705]
[1731362621276,0.13983403,87813.0,87812.0,0.001705]
[1731362621493,0.13483403,87813.0,87812.0,0.001705]
[1731362623111,0.13483403,87813.0,87812.0,0.001665]
[1731362623713,0.11683403,87813.0,87812.0,0.001665]
[1731362623922,0.11422305,87813.0,87812.0,0.001665]
[1731362626628,0.14283535,87813.0,87812.0,0.001665]
[1731362626824,0.14544633,87813.0,87812.0,0.001665]
[1731362627275,0.13983403,87813.0,87812.0,0.001665]
[1731362631286,0.14544633,87813.0,87812.0,0.001665]
[1731362631736,0.14344633,87813.0,87812.0,0.001665]
[1731362631939,0.14544633,87813.0,87812.0,0.001665]
[1731362632138,0.16049096,87813.0,87812.0,0.001665]
[1731362632544,0.19649084,87813.0,87812.0,0.001665]
[1731362633515,0.19649084,87813.0,87806.0,0.0017034]
[1731362633516,0.0286123,87807.0,87806.0,0.0017034]
[1731362633782,0.14544633,87807.0,87806.0,0.0017034]
[1731362634009,0.18059211,87807.0,87806.0,0.0017034]
[1731362634210,0.17859211,87807.0,87806.0,0.0017034]
[1731362636387,0.18059211,87807.0,87806.0,0.0017034]
[1731362636501,0.17859211,87807.0,87806.0,0.0017034]
[1731362636900,0.17497981,87807.0,87806.0,0.0017034]
[1731362637142,0.17859211,87807.0,87806.0,0.0017034]
[1731362637744,0.17497981,87807.0,87806.0,0.0017034]
[1731362637952,0.15197981,87807.0,87806.0,0.0017034]
[1731362639452,0.17859211,87807.0,87806.0,0.0017034]
[1731362641249,0.18059211,87807.0,87806.0,0.0017034]
[1731362641658,0.15197981,87807.0,87806.0,0.0017034]
[1731362641957,0.14936883,87807.0,87806.0,0.00410148]
[1731362642193,0.14936883,87807.0,87806.0,0.0017034]
[1731362643967,0.03514578,87807.0,87806.0,0.0017034]
[1731362644595,0.14936883,87807.0,87806.0,0.0017034]
[1731362645223,0.18098113,87807.0,87806.0,0.0017034]
[1731362645440,0.18559211,87807.0,87806.0,0.0017034]
[1731362645646,0.18059211,87807.0,87806.0,0.0017034]
[1731362645893,0.3055234,87807.0,87806.0,0.00228359]
[1731362646098,0.0286123,87803.0,87802.0,0.04599319]
[1731362646269,0.18059211,87803.0,87802.0,0.04599319]
[1731362646481,0.002,87801.0,87800.0,0.0019962]
[1731362646683,0.21701432,87801.0,87800.0,0.0019962]
[1731362646881,0.35264833,87801.0,87800.0,0.0019962]
[1731362647173,0.33940549,87801.0,87800.0,0.0019962]
[1731362647377,0.41570549,87801.0,87800.0,0.0019962]
[1731362647615,0.46350549,87801.0,87800.0,0.0019962]
[1731362647817,0.46545564,87801.0,87800.0,0.0019962]
[1731362648007,0.56711942,87801.0,87800.0,0.0019962]
[1731362648456,0.46545564,87801.0,87800.0,0.0019962]
[1731362648684,0.0106123,87792.0,87791.0,0.00134685]
[1731362648879,0.30798328,87792.0,87791.0,0.00134685]
[1731362649008,0.30437098,87792.0,87791.0,0.00134685]
[1731362649223,0.30798328,87792.0,87791.0,0.00134685]
[1731362650779,0.4228606,87792.0,87791.0,0.00134685]
[1731362650940,0.3062913,87792.0,87791.0,0.00134685]
[1731362651122,0.3082913,87792.0,87791.0,0.00134685]
[1731362652221,0.47668792,87792.0,87791.0,0.00134685]
[1731362652447,0.35596009,87792.0,87791.0,0.00134685]
[1731362652765,0.4578206,87792.0,87791.0,0.00134685]
[1731362652983,0.35596009,87792.0,87791.0,0.00134685]
[1731362653360,0.3082913,87792.0,87791.0,0.00134685]
[1731362653567,0.3062913,87792.0,87791.0,0.00134685]
[1731362654434,0.297679,87792.0,87791.0,0.00134685]
[1731362654668,0.274679,87792.0,87791.0,0.00134685]
[1731362654889,0.27728998,87792.0,87791.0,0.00134685]
[1731362655085,0.15197981,87792.0,87791.0,0.00134685]
[1731362655550,0.20288841,87792.0,87791.0,0.00134685]
[1731362655767,0.15197981,87792.0,87791.0,0.00134685]
[1731362656194,0.27726666,87792.0,87791.0,0.00134685]
[1731362656400,0.20289036,87792.0,87791.0,0.00134685]
[1731362656601,0.20289148,87792.0,87791.0,0.00134685]
[1731362657524,0.15197981,87792.0,87791.0,0.00134685]
[1731362657744,0.14936883,87792.0,87791.0,0.00134685]
[1731362657951,0.14957213,87792.0,87791.0,0.00134685]
[1731362658287,0.13722305,87792.0,87791.0,0.00134685]
[1731362658522,0.14183403,87792.0,87791.0,0.00134685]
[1731362658686,0.21112711,87792.0,87791.0,0.00134685]
[1731362658893,0.22609648,87792.0,87791.0,0.00134685]
[1731362659150,0.30049209,87792.0,87791.0,0.00134685]
[1731362659366,0.22348943,87792.0,87791.0,0.00134685]
[1731362659502,0.22610041,87792.0,87791.0,0.00134685]
[1731362660109,0.22810041,87792.0,87791.0,0.00134685]
[1731362661100,0.22610041,87792.0,87791.0,0.00134685]
[1731362661819,0.39096584,87792.0,87791.0,0.00134685]
[1731362662028,0.31409948,87792.0,87791.0,0.00134685]
[1731362662226,0.30349178,87792.0,87791.0,0.00134685]
[1731362662492,0.50430471,87792.0,87791.0,0.00134685]
[1731362662670,0.31909948,87792.0,87791.0,0.00134685]
[1731362662870,0.002,87773.0,87762.0,0.17070187]
[1731362663121,0.15159792,87773.0,87762.0,0.17070187]
[1731362663272,0.15278407,87773.0,87772.0,0.21622163]
[1731362663470,0.11883403,87773.0,87772.0,0.04551976]
[1731362663673,0.34741216,87773.0,87762.0,0.17070187]
[1731362663898,0.03394611,87770.0,87762.0,0.17070187]
[1731362664103,0.11683403,87769.0,87762.0,0.17070187]
[1731362664590,0.11683403,87769.0,87755.0,0.0805]
[1731362665818,0.11883403,87769.0,87755.0,0.0805]
[1731362666572,0.023,87768.0,87765.0,0.04918765]
[1731362666778,0.11683403,87767.0,87765.0,0.0032524]
[1731362667485,0.0266123,87766.0,87765.0,0.0032524]
[1731362667698,0.14083535,87766.0,87765.0,0.0032524]
[1731362668122,0.14283535,87766.0,87765.0,0.0032524]
[1731362669094,0.13722305,87766.0,87765.0,0.0032524]
[1731362670235,0.13722305,87766.0,87765.0,0.004961]
[1731362670673,0.13722305,87766.0,87765.0,0.0513432]
[1731362670889,0.13983403,87766.0,87765.0,0.004961]
[1731362671911,0.00261098,87770.0,87766.0,0.1]
[1731362672133,0.06787683,87781.0,87766.0,0.1]
[1731362672134,0.11422305,87769.0,87766.0,0.1]
[1731362672339,0.00261098,87768.0,87766.0,0.1]
[1731362673080,0.00261098,87768.0,87765.0,0.004961]
[1731362673081,0.11422305,87767.0,87765.0,0.004961]
[1731362673292,0.00261098,87766.0,87765.0,0.004961]
[1731362673493,0.11683403,87766.0,87765.0,0.004961]
[1731362674327,0.11422305,87766.0,87765.0,0.004961]
[1731362674990,0.00261098,87778.0,87766.0,0.1]
[1731362675201,0.18130722,87787.0,87778.0,0.1]
[1731362675419,0.11683403,87786.0,87785.0,0.22934941]
[1731362675621,0.11422305,87786.0,87785.0,0.1]
[1731362676305,0.0008543,87792.0,87786.0,0.1013877]
[1731362676507,0.03393841,87801.0,87792.0,0.1]
[1731362676715,0.11422305,87800.0,87792.0,0.1]
[1731362677669,0.11422305,87800.0,87792.0,0.09996]
[1731362678293,0.11422305,87800.0,87785.0,0.0777669]
[1731362678294,0.11422305,87800.0,87785.0,0.04684196]
[1731362678492,0.11422305,87800.0,87790.0,0.17070187]
[1731362678718,0.11422305,87800.0,87784.0,0.12934941]
[1731362679378,0.002,87792.0,87771.0,0.0013877]
[1731362679615,0.13722305,87791.0,87790.0,0.17070187]
[1731362679826,0.17258375,87791.0,87790.0,0.1]
[1731362680035,0.13922305,87791.0,87790.0,0.1]
[1731362680490,0.13722305,87791.0,87790.0,0.1]
[1731362680699,0.13722305,87791.0,87777.0,0.1]
[1731362680912,0.13722305,87791.0,87783.0,0.1]
[1731362681127,0.13722305,87791.0,87782.0,0.17070187]
[1731362681128,0.002,87784.0,87778.0,0.17070187]
[1731362681338,0.11422305,87783.0,87778.0,0.17070187]
[1731362681558,0.023,87782.0,87770.0,0.12934941]
[1731362681768,0.11422305,87781.0,87770.0,0.12934941]
[1731362681958,0.11422305,87781.0,87770.0,0.0352771]
[1731362682183,0.11422305,87781.0,87776.0,0.12934941]
[1731362682402,0.11422305,87781.0,87777.0,0.1]
[1731362682640,0.10899461,87781.0,87777.0,0.1]
[1731362682910,0.10899461,87781.0,87777.0,0.12646265]
[1731362683117,0.06780597,87797.0,87777.0,0.12646265]
[1731362683118,0.03391895,87793.0,87779.0,0.0013877]
[1731362683357,0.11422305,87792.0,87786.0,0.1]
[1731362683595,0.0036123,87788.0,87786.0,0.1]
[1731362683821,0.11783535,87787.0,87786.0,0.1]
[1731362684246,0.14083535,87787.0,87786.0,0.1]
[1731362684459,0.023,87786.0,87779.0,0.1]
[1731362684673,0.03391895,87790.0,87772.0,0.1]
[1731362684674,0.023,87784.0,87772.0,0.1]
[1731362684883,0.023,87776.0,87769.0,0.17070187]
[1731362685103,0.023,87774.0,87769.0,0.17070187]
[1731362685315,0.023,87772.0,87769.0,0.04602641]
[1731362685531,0.11422305,87771.0,87769.0,0.04602641]
[1731362685745,0.023,87770.0,87765.0,0.05037803]
[1731362685970,0.03391895,87777.0,87769.0,0.17070187]
[1731362686183,0.05087843,87780.0,87765.0,0.05176573]
[1731362686184,0.11422305,87776.0,87775.0,0.1]
[1731362686638,0.13722305,87776.0,87775.0,0.1]
[1731362688458,0.11422305,87776.0,87775.0,0.1]
[1731362689893,0.11422305,87776.0,87775.0,0.14526246]
[1731362691123,0.15969018,87776.0,87775.0,0.04526246]
[1731362691403,0.15969018,87776.0,87765.0,0.004961]
[1731362691404,0.0765123,87766.0,87765.0,0.004961]
[1731362691597,0.0036123,87754.0,87753.0,0.17070187]
[1731362691810,0.0286123,87749.0,87746.0,0.04700332]
[1731362692034,0.14083535,87749.0,87740.0,0.17070187]
[1731362692242,0.29806219,87749.0,87740.0,0.17070187]
[1731362692467,0.30162239,87749.0,87740.0,0.17070187]
[1731362692695,0.26261911,87749.0,87740.0,0.17070187]
[1731362692907,0.26823141,87749.0,87740.0,0.17070187]
[1731362693106,0.26823141,87749.0,87741.0,0.1017064]
[1731362693567,0.26823141,87749.0,87746.0,0.04520243]
[1731362694145,0.33613738,87749.0,87746.0,0.04520243]
[1731362694488,0.26823141,87749.0,87746.0,0.04520243]
[1731362694693,0.26811805,87749.0,87746.0,0.04520243]
[1731362694895,0.26611805,87749.0,87746.0,0.04520243]
[1731362695108,0.19174348,87749.0,87746.0,0.04520243]